bitfinex/quotes_SOLUSD_20240614
["timestamp","ask_amount","ask_price","bid_price","bid_amount"]
[1718375645379,2.5386,145.75,145.67,2.8799]
[1718375645569,2.5393,145.71,145.66,0.34]
[1718375645771,15.2349,145.72,145.65,0.34]
[1718375646071,22.8492,145.74,145.66,2.7101]
[1718375646277,2.5389,145.73,145.66,2.7101]
[1718375646485,2.5386,145.75,145.68,0.17]
[1718375646661,217.7695,145.76,145.65,0.34]
[1718375646662,25.3919,145.72,145.65,0.34]
[1718375646849,25.3902,145.73,145.65,7.9609]
[1718375647049,15.2339,145.73,145.66,0.17]
[1718375647274,2.5391,145.72,145.65,0.17]
[1718375647555,2.5392,145.72,145.65,0.34]
[1718375647777,2.539,145.73,145.66,2.5401]
[1718375648161,5.077,145.76,145.68,2.5397]
[1718375648359,2.5386,145.75,145.69,0.34]
[1718375648655,100.0,145.74,145.65,2.7102]
[1718375648859,7.6173,145.72,145.66,0.51]
[1718375649057,100.0,145.76,145.67,0.17]
[1718375649363,22.8507,145.73,145.66,0.34]
[1718375649576,100.8275496,145.77,145.66,18.1202]
[1718375649577,15.2322,145.75,145.66,18.1202]
[1718375649775,100.0,145.76,145.66,0.34]
[1718375649985,2.5386,145.75,145.68,2.5397]
[1718375650289,12.6921,145.76,145.68,2.5397]
[1718375650462,12.6921,145.76,145.69,0.34]
[1718375650463,2.5386,145.75,145.69,0.34]
[1718375650772,2.5387,145.74,145.67,0.17]
[1718375650975,7.6159,145.75,145.67,8.2998]
[1718375651156,5.078,145.73,145.64,21.9402]
[1718375651360,17.778,145.69,145.64,21.9402]
[1718375651558,2.5399,145.68,145.6,28.4386]
[1718375651895,25.4021,145.66,145.6,21.8261]
[1718375652183,22.8574,145.69,145.6,34.5319]
[1718375652384,200.0,145.7,145.6,21.8261]
[1718375652589,2.5399,145.68,145.6,34.5319]
[1718375652888,2.54,145.67,145.6,21.8261]
[1718375653180,2.5405,145.64,145.56,21.3236]
[1718375653379,7.6222,145.63,145.56,6.0726]
[1718375653566,100.0,145.62,145.56,6.0726]
[1718375653761,100.0,145.62,145.53,2.5424]
[1718375653762,5.0821,145.61,145.53,2.5424]
[1718375653964,7.6236,145.6,145.52,13.9763]
[1718375654173,2.5412,145.6,145.52,19.0616]
[1718375654380,2.5412,145.6,145.52,21.6042]
[1718375654589,22.8713,145.6,145.52,6.349]
[1718375654785,12.7075,145.59,145.52,6.349]
[1718375654980,125.4128,145.6,145.52,8.8915]
[1718375655197,100.0,145.6,145.53,2.5424]
[1718375655487,102.5413,145.6,145.52,8.8915]
[1718375655664,100.0,145.6,145.54,7.6266]
[1718375655870,100.0,145.62,145.55,7.6258]
[1718375656068,100.0,145.65,145.52,6.349]
[1718375656292,100.0,145.69,145.63,2.5406]
[1718375656497,100.0,145.71,145.63,7.622]
[1718375656798,100.0,145.71,145.62,6.3331]
[1718375657093,2.5395,145.7,145.62,11.2447]
[1718375657386,112.6966,145.71,145.63,3.2206]
[1718375657591,7.6183,145.7,145.63,0.68]
[1718375657897,7.6183,145.7,145.63,3.2206]
[1718375657898,2.5394,145.7,145.63,3.2206]
[1718375658099,102.539,145.73,145.65,7.6208]
[1718375658268,107.617,145.73,145.65,2.5402]
[1718375658471,2.5391,145.72,145.64,7.6211]
[1718375658666,2.5391,145.72,145.65,2.5403]
[1718375658966,125.39,145.73,145.65,2.5403]
[1718375659384,2.5391,145.72,145.65,2.5403]
[1718375659569,2.5388,145.74,145.66,5.4201]
[1718375659767,100.0,145.72,145.63,0.51]
[1718375659968,100.0,145.72,145.63,3.0506]
[1718375659969,5.0787,145.71,145.63,3.0506]
[1718375660167,25.3936,145.71,145.63,3.0506]
[1718375660392,15.2368,145.7,145.63,0.51]
[1718375660615,7.6189,145.69,145.62,6.1631]
[1718375660763,22.8589,145.68,145.62,6.1631]
[1718375660973,200.0,145.68,145.62,6.1631]
[1718375661273,100.0,145.63,145.57,6.1684]
[1718375661477,5.0814,145.63,145.57,6.1684]
[1718375661686,22.8652,145.64,145.57,6.1684]
[1718375661886,5.0818,145.62,145.57,6.1684]
[1718375662068,100.0,145.61,145.52,22.8035]
[1718375662271,22.8726,145.59,145.52,22.8035]
[1718375662483,100.0,145.63,145.52,22.8035]
[1718375662686,2.5408,145.62,145.54,25.4216]
[1718375662870,112.7036,145.63,145.55,7.6261]
[1718375662871,105.0815,145.63,145.55,7.6261]
[1718375663072,102.5407,145.63,145.55,5.0839]
[1718375663266,105.0813,145.63,145.55,2.542]
[1718375663505,100.0,145.64,145.52,22.8035]
[1718375663506,100.0,145.6,145.52,22.8035]
[1718375663709,24.98,145.65,145.52,22.8035]
[1718375663710,100.0,145.61,145.52,22.8035]
[1718375663915,107.6231,145.61,145.53,7.6269]
[1718375664099,200.0,145.63,145.52,22.8035]
[1718375664410,107.6241,145.59,145.52,22.8035]
[1718375664915,100.0,145.64,145.52,22.8035]
[1718375665113,7.6233,145.61,145.53,2.5423]
[1718375665315,7.6233,145.61,145.52,40.6011]
[1718375665316,2.5412,145.6,145.52,45.6858]
[1718375665489,7.6236,145.6,145.53,0.68]
[1718375665695,17.7873,145.61,145.53,0.68]
[1718375665696,20.3284,145.61,145.53,0.68]
[1718375666009,22.8667,145.63,145.55,2.542]
[1718375666313,22.8667,145.63,145.56,2.5418]
[1718375666314,2.5406,145.63,145.56,2.5418]
[1718375666495,50.0813,145.63,145.55,22.8778]
[1718375666692,100.0,145.64,145.57,2.5416]
[1718375666902,107.6216,145.64,145.56,15.251]
[1718375667197,2.5408,145.62,145.55,3.0519]
[1718375667397,2.5408,145.62,145.56,0.34]
[1718375667712,7.6226,145.62,145.56,0.34]
[1718375668025,7.6226,145.62,145.53,0.17]
[1718375668026,2.5412,145.6,145.53,0.17]
[1718375668316,107.6228,145.62,145.54,15.2532]
[1718375668523,7.623,145.61,145.53,8.3069]
[1718375668692,7.623,145.61,145.54,0.17]
[1718375668892,2.541,145.61,145.54,0.34]
[1718375669312,2.5413,145.6,145.54,0.34]
[1718375669493,2.541,145.61,145.54,2.8822]
[1718375669694,100.0,145.62,145.55,2.542]
[1718375669903,7.6222,145.63,145.55,15.2522]
[1718375670120,100.0,145.64,145.54,0.34]
[1718375670290,100.0,145.64,145.57,2.5416]
[1718375670495,102.5405,145.64,145.57,2.5417]
[1718375670701,102.5405,145.64,145.56,25.418]
[1718375670902,115.2431,145.64,145.56,7.6252]
[1718375671094,2.5407,145.63,145.56,2.5417]
[1718375671311,7.6231,145.61,145.55,0.17]
[1718375671620,25.4111,145.61,145.53,7.7971]
[1718375671805,117.7888,145.6,145.52,22.8035]
[1718375672120,107.6237,145.6,145.52,38.0588]
[1718375672313,100.0,145.6,145.53,7.6271]
[1718375672513,100.0,145.62,145.55,5.084]
[1718375672823,2.541,145.61,145.53,22.8811]
[1718375673119,2.541,145.61,145.52,22.8035]
[1718375673120,100.0,145.62,145.55,15.2521]
[1718375673325,107.6215,145.64,145.56,25.4185]
[1718375673621,115.2431,145.64,145.56,2.5417]
[1718375673839,107.6215,145.64,145.56,15.251]
[1718375674130,100.0,145.66,145.59,17.7892]
[1718375674335,25.4002,145.67,145.59,2.5413]
[1718375674532,100.0,145.68,145.58,0.17]
[1718375674737,105.0797,145.68,145.6,2.5411]
[1718375675035,7.619,145.69,145.61,8.1329]
[1718375675246,7.619,145.69,145.61,0.68]
[1718375675247,7.6194,145.68,145.61,0.68]
[1718375675451,7.6202,145.67,145.59,2.5412]
[1718375675733,12.6994,145.68,145.6,3.2211]
[1718375675937,2.54,145.67,145.6,0.68]
[1718375676118,105.0792,145.7,145.61,7.623]
[1718375676319,7.6179,145.71,145.63,22.8656]
[1718375676519,5.0783,145.72,145.64,0.17]
[1718375676715,100.0,145.72,145.64,0.51]
[1718375677035,100.0,145.73,145.65,5.2506]
[1718375677036,2.539,145.73,145.65,5.2506]
[1718375677217,2.5391,145.72,145.65,0.17]
[1718375677435,25.3898,145.73,145.65,2.8802]
[1718375677737,15.2339,145.73,145.65,7.9608]
[1718375677917,2.5391,145.72,145.65,2.8802]
[1718375678232,100.0,145.71,145.62,0.17]
[1718375678413,2.5395,145.7,145.62,26.0876]
[1718375678731,2.5395,145.7,145.63,2.5406]
[1718375678923,122.854,145.71,145.63,2.5406]
[1718375679131,100.0,145.73,145.64,2.7104]
[1718375679132,5.0783,145.72,145.64,2.7104]
[1718375679330,102.539,145.73,145.65,5.0806]
[1718375679638,2.5391,145.72,145.64,15.9227]
[1718375679835,15.2347,145.72,145.64,3.2204]
[1718375680040,5.079,145.7,145.64,0.51]
[1718375680209,2.5396,145.69,145.62,0.17]
[1718375680407,15.2389,145.68,145.62,0.68]
[1718375680628,5.0799,145.67,145.61,6.4087]
[1718375680821,7.6211,145.65,145.61,6.4087]
[1718375681034,22.8633,145.65,145.61,6.4087]
[1718375681225,7.6207,145.66,145.61,6.4087]
[1718375681409,12.701,145.66,145.61,6.4087]
[1718375681613,7.6207,145.66,145.61,6.4087]
[1718375681814,102.54,145.67,145.61,6.4087]
[1718375682019,2.5399,145.68,145.61,6.4087]
[1718375682215,22.8586,145.68,145.61,6.4087]
[1718375682638,25.3985,145.68,145.61,6.4087]
[1718375682821,5.0791,145.7,145.62,2.5408]
[1718375683019,2.5399,145.68,145.61,6.9187]
[1718375683333,12.6994,145.68,145.61,6.9187]
[1718375683519,2.5406,145.64,145.61,6.4087]
[1718375683718,7.6216,145.64,145.61,6.4087]
[1718375683913,100.0,145.66,145.57,6.0456]
[1718375684117,7.6222,145.63,145.57,6.0456]
[1718375684426,5.0808,145.65,145.57,8.5872]
[1718375684739,102.5402,145.66,145.59,2.5413]
[1718375684965,100.0,145.7,145.57,6.0456]
[1718375685242,2.5395,145.7,145.62,5.0814]
[1718375685419,7.6184,145.7,145.62,7.6223]
[1718375685612,2.5396,145.69,145.62,2.5408]
[1718375685830,2.5396,145.69,145.63,0.51]
[1718375686245,7.6187,145.7,145.63,0.51]
[1718375686750,2.5396,145.69,145.63,0.51]
[1718375687319,100.0,145.72,145.63,0.51]
[1718375687520,100.0,145.74,145.64,16.0258]
[1718375687850,5.0783,145.72,145.64,18.5661]
[1718375688071,100.0,145.72,145.64,15.8558]
[1718375688353,100.0,145.68,145.58,15.7947]
[1718375688647,7.6205,145.66,145.59,0.34]
[1718375688860,2.5405,145.64,145.58,15.7947]
[1718375689038,107.6198,145.68,145.59,2.5413]
[1718375689364,2.5398,145.68,145.6,25.4114]
[1718375689572,2.54,145.67,145.59,22.8716]
[1718375689747,2.5401,145.66,145.59,2.5412]
[1718375690058,25.4053,145.64,145.58,15.7947]
[1718375690260,2.5406,145.64,145.58,15.7947]
[1718375690437,5.0799,145.67,145.59,20.3303]
[1718375690637,25.3999,145.67,145.59,2.5412]
[1718375690855,105.0798,145.68,145.58,15.7947]
[1718375691060,102.5399,145.68,145.6,25.4114]
[1718375691265,100.0,145.71,145.62,2.5408]
[1718375691440,22.8554,145.7,145.61,17.7864]
[1718375691763,22.8586,145.68,145.6,7.6232]
[1718375691955,20.3187,145.68,145.6,5.2523]
[1718375692162,7.6196,145.68,145.61,0.34]
[1718375692347,2.5399,145.68,145.61,2.881]
[1718375692834,2.5399,145.68,145.61,2.8809]
[1718375693238,7.6195,145.68,145.61,0.34]
[1718375693533,7.6199,145.67,145.61,0.17]
[1718375693733,100.0,145.71,145.63,0.17]
[1718375693992,122.8543,145.71,145.63,2.7105]
[1718375694159,122.8543,145.71,145.62,17.955]
[1718375694160,25.3949,145.7,145.62,7.9623]
[1718375694341,22.8553,145.7,145.62,2.8807]
[1718375694670,7.6189,145.69,145.62,0.34]
[1718375694855,7.6189,145.69,145.62,2.8808]
[1718375695055,2.5396,145.69,145.62,2.8808]
[1718375695259,100.0,145.68,145.6,0.34]
[1718375695561,105.0797,145.68,145.6,2.541]
[1718375695745,2.54,145.67,145.6,2.5411]
[1718375696361,2.5396,145.69,145.62,2.5408]
[1718375696558,17.7795,145.68,145.6,7.6233]
[1718375696750,2.5398,145.68,145.61,2.5409]
[1718375696950,122.8587,145.68,145.6,7.6234]
[1718375697276,7.6199,145.67,145.59,25.4128]
[1718375697457,2.54,145.67,145.6,2.5411]
[1718375697783,100.0,145.7,145.63,7.6217]
[1718375697938,100.0,145.74,145.64,0.17]
[1718375698276,2.5398,145.68,145.61,2.5408]
[1718375698569,2.5398,145.68,145.6,23.5502]
[1718375698770,25.3969,145.69,145.61,8.1329]
[1718375698940,2.5395,145.7,145.62,5.2515]
[1718375699143,2.5393,145.71,145.63,23.3753]
[1718375699464,117.775,145.71,145.62,17.9554]
[1718375699634,2.5396,145.69,145.62,2.7107]
[1718375699842,15.2377,145.69,145.62,0.17]
[1718375700144,22.8569,145.69,145.62,0.34]
[1718375700362,122.8589,145.68,145.61,0.34]
[1718375700541,100.0,145.68,145.61,7.623]
[1718375700745,100.0,145.68,145.61,2.541]
[1718375700975,100.0,145.68,145.61,7.623]
[1718375701180,2.5398,145.69,145.62,2.5408]
[1718375701472,122.8559,145.7,145.62,7.6223]
[1718375701473,125.395,145.7,145.62,7.6223]
[1718375701782,100.0,145.68,145.61,15.5858]
[1718375701948,100.0,145.68,145.61,2.5409]
[1718375702266,100.0,145.68,145.61,15.2458]
[1718375702452,107.6194,145.68,145.6,23.3798]
[1718375702648,100.0,145.66,145.58,15.7947]
[1718375702840,100.0,145.66,145.59,2.5413]
[1718375703161,100.0,145.66,145.58,38.6682]
[1718375703162,102.5402,145.66,145.58,38.6684]
[1718375703343,2.5402,145.66,145.58,38.6683]
[1718375703543,122.8634,145.65,145.58,15.7947]
[1718375703944,102.5403,145.65,145.58,15.7947]
[1718375704149,107.621,145.65,145.58,15.7947]
[1718375704443,100.0,145.62,145.57,6.0456]
[1718375704648,2.5411,145.61,145.57,6.0456]
[1718375704953,17.7853,145.63,145.57,6.0456]
[1718375705160,45.0,145.62,145.57,6.0456]
[1718375705363,152.6227,145.62,145.57,6.0456]
[1718375705558,147.5409,145.62,145.57,6.0456]
[1718375705871,160.2453,145.62,145.57,6.0456]
[1718375706058,170.4087,145.62,145.57,6.0456]
[1718375706369,170.4087,145.62,145.54,15.0476]
[1718375706370,107.6237,145.6,145.54,15.0476]
[1718375706954,100.0,145.6,145.54,15.0476]
[1718375707455,102.5412,145.6,145.54,15.0476]
[1718375707677,100.0,145.6,145.54,15.0476]
[1718375708375,45.0,145.62,145.55,17.7941]
[1718375708577,100.0,145.66,145.59,7.6238]
[1718375708869,12.7037,145.63,145.55,2.712]
[1718375709076,2.5407,145.63,145.56,2.5418]
[1718375709262,2.5404,145.65,145.58,2.5415]
[1718375709471,5.0808,145.65,145.57,3.0516]
[1718375709664,107.6228,145.62,145.54,15.0476]
[1718375709868,22.8697,145.61,145.54,15.0476]
[1718375710074,145.0,145.6,145.54,15.0476]
[1718375710255,147.5412,145.6,145.54,15.0476]
[1718375710651,45.0,145.6,145.54,15.0476]
[1718375710878,147.5412,145.6,145.54,15.0476]
[1718375711057,2.5417,145.57,145.54,15.0476]
[1718375711370,102.5416,145.58,145.53,6.5152]
[1718375711579,100.0,145.55,145.5,15.9608]
[1718375711779,122.8793,145.55,145.5,15.9608]
[1718375711981,2.5422,145.54,145.5,15.9608]
[1718375712275,105.0843,145.55,145.5,15.9608]
[1718375712478,125.4215,145.55,145.5,15.9608]
[1718375712861,10.169,145.54,145.49,6.3702]
[1718375713061,2.5424,145.53,145.49,6.3702]
[1718375713266,7.6273,145.53,145.49,6.3702]
[1718375713577,17.7959,145.54,145.49,6.3702]
[1718375713578,25.4229,145.54,145.49,6.3702]
[1718375713782,2.5424,145.53,145.49,6.3702]
[1718375714075,7.627,145.54,145.49,6.3702]
[1718375714372,107.6289,145.5,145.43,22.2583]
[1718375714876,7.6301,145.48,145.43,22.2583]
[1718375715064,2.5435,145.47,145.43,22.2583]
[1718375715382,115.2599,145.48,145.43,22.2583]
[1718375715557,122.8899,145.48,145.43,22.2583]
[1718375715890,2.5436,145.47,145.39,38.3623]
[1718375716183,22.8923,145.47,145.39,23.0932]
[1718375716367,7.6308,145.47,145.39,25.638]
[1718375716548,100.0,145.5,145.42,12.7215]
[1718375716749,70.4318,145.49,145.41,2.5445]
[1718375717051,107.629,145.5,145.42,2.5443]
[1718375717374,124.97,145.54,145.39,23.0932]
[1718375717375,142.7662,145.54,145.45,5.0875]
[1718375717674,2.5426,145.52,145.44,22.8948]
[1718375717880,105.0853,145.52,145.44,2.5439]
[1718375718071,2.5435,145.47,145.4,0.17]
[1718375718275,22.8921,145.47,145.39,25.638]
[1718375718453,7.6306,145.47,145.39,25.638]
[1718375718781,7.6293,145.49,145.41,7.6331]
[1718375718978,7.6294,145.49,145.41,7.6334]
[1718375719186,2.5432,145.49,145.41,15.2669]
[1718375719360,7.6299,145.48,145.4,7.8036]
[1718375719681,45.0,145.49,145.41,0.68]
[1718375719862,2.5428,145.51,145.41,0.68]
[1718375720193,200.0,145.52,145.41,0.51]
[1718375720359,2.5436,145.47,145.41,0.51]
[1718375720562,7.63,145.48,145.41,0.51]
[1718375720860,2.5442,145.43,145.39,23.0932]
[1718375721173,2.544,145.44,145.39,23.0932]
[1718375721360,7.6322,145.44,145.39,23.0932]
[1718375721565,7.6326,145.43,145.39,23.0932]
[1718375721886,2.5441,145.44,145.39,23.0932]
[1718375722181,45.0,145.44,145.39,23.0932]
[1718375722392,25.4424,145.43,145.39,23.0932]
[1718375722687,25.4424,145.43,145.35,2.5455]
[1718375722688,2.5446,145.41,145.35,6.4105]
[1718375722886,100.0,145.4,145.35,6.4105]
[1718375723087,105.0895,145.4,145.35,6.4105]
[1718375723262,5.0897,145.39,145.35,6.4105]
[1718375723457,100.0,145.4,145.35,6.4105]
[1718375723761,2.5449,145.39,145.35,6.4105]
[1718375723969,7.6346,145.39,145.35,6.4105]
[1718375724164,2.5449,145.39,145.35,6.4105]
[1718375724366,2.545,145.38,145.35,6.4105]
[1718375724580,2.545,145.39,145.35,6.4105]
[1718375724787,145.0,145.41,145.29,6.5477]
[1718375724788,100.0,145.38,145.29,6.5477]
[1718375724998,47.5453,145.37,145.29,6.5477]
[1718375725301,105.0902,145.38,145.29,11.6409]
[1718375725302,122.906,145.38,145.29,11.6409]
[1718375725584,2.5453,145.37,145.29,9.0942]
[1718375725803,47.5453,145.37,145.29,19.2806]
[1718375725959,45.0,145.37,145.29,29.467]
[1718375726163,45.0,145.37,145.3,2.5463]
[1718375726383,47.5452,145.37,145.29,14.1873]
[1718375726698,52.6356,145.37,145.29,14.1873]
[1718375726911,47.5452,145.37,145.29,21.827]
[1718375727078,47.5452,145.37,145.3,2.5464]
[1718375727479,47.5452,145.37,145.29,29.4671]
[1718375727708,47.5452,145.37,145.3,2.5464]
[1718375727912,47.5452,145.37,145.3,2.5463]
[1718375727913,45.0,145.37,145.3,2.5463]
[1718375728214,47.5452,145.37,145.29,32.0132]
[1718375728381,47.5452,145.37,145.3,2.5464]
[1718375728584,102.5454,145.36,145.29,6.5477]
[1718375728884,102.5454,145.36,145.29,9.0943]
[1718375728885,45.0,145.35,145.29,9.0943]
[1718375729094,45.0,145.35,145.29,6.5477]
[1718375729284,100.0,145.36,145.29,14.1874]
[1718375729501,100.0,145.36,145.29,29.4671]
[1718375729677,100.0,145.36,145.3,7.6392]
[1718375729884,107.6355,145.38,145.3,7.6392]
[1718375730104,45.0,145.37,145.3,25.4638]
[1718375730284,45.0,145.37,145.3,22.9175]
[1718375730480,2.5447,145.4,145.32,12.7303]
[1718375730686,7.6343,145.4,145.32,7.638]
[1718375730986,122.9016,145.41,145.32,22.9147]
[1718375731189,107.6338,145.41,145.33,7.6376]
[1718375731393,2.5449,145.39,145.31,13.2411]
[1718375731587,2.545,145.38,145.32,0.17]
[1718375731787,22.9075,145.37,145.29,9.0942]
[1718375732001,2.5453,145.37,145.3,3.0564]
[1718375732202,2.5454,145.36,145.3,0.51]
[1718375732407,2.5454,145.36,145.29,9.0942]
[1718375732408,7.6373,145.34,145.29,6.5477]
[1718375732584,107.6364,145.36,145.29,6.5477]
[1718375732786,7.6368,145.35,145.29,6.5477]
[1718375733200,107.6364,145.36,145.29,6.5477]
[1718375733403,47.5455,145.35,145.29,6.5477]
[1718375733606,45.0,145.35,145.29,6.5477]
[1718375733782,47.5455,145.35,145.29,6.5477]
[1718375733985,2.5459,145.34,145.29,6.5477]
[1718375734198,100.0,145.34,145.29,6.5477]
[1718375734405,2.5459,145.33,145.29,6.5477]
[1718375734593,100.0,145.37,145.29,6.5477]
[1718375734803,7.6363,145.36,145.29,6.5477]
[1718375735016,122.9079,145.37,145.29,14.1874]
[1718375735205,45.0,145.36,145.29,9.0942]
[1718375735393,45.0,145.36,145.29,6.5477]
[1718375735591,67.9087,145.36,145.29,6.5477]
[1718375735794,45.0,145.36,145.29,6.5477]
[1718375736009,47.5455,145.36,145.29,6.5477]
[1718375736385,60.2725,145.36,145.29,6.5477]
[1718375736588,7.6367,145.35,145.29,6.5477]
[1718375736788,62.8183,145.36,145.29,6.5477]
[1718375736789,52.6363,145.36,145.29,6.5477]
[1718375736984,102.5455,145.35,145.29,6.5477]
[1718375737223,125.4596,145.33,145.29,6.5477]
[1718375737431,2.5461,145.32,145.29,6.5477]
[1718375737631,125.4596,145.33,145.29,6.5477]
[1718375737791,122.9136,145.33,145.29,6.5477]
[1718375737994,12.7313,145.31,145.26,0.8275496]
[1718375738216,105.0936,145.28,145.26,0.8275496]
[1718375738444,25.4696,145.27,145.26,0.8275496]
[1718375739139,112.7344,145.28,145.26,0.8275496]
[1718375739298,15.2817,145.27,145.26,0.8275496]
[1718375739499,2.5469,145.27,145.26,0.8275496]
[1718375739699,25.4696,145.27,145.26,0.8275496]
[1718375739918,7.6408,145.27,145.26,0.8275496]
[1718375740137,100.0,145.31,145.26,0.8275496]
[1718375740310,100.0,145.29,145.26,0.8275496]
[1718375740504,107.6408,145.27,145.26,0.8275496]
[1718375740831,125.4696,145.27,145.26,0.8275496]
[1718375741039,100.0,145.27,145.26,0.8275496]
[1718375741328,100.0,145.31,145.26,0.8275496]
[1718375741529,100.0,145.35,145.27,15.0142]
[1718375741836,100.0,145.37,145.31,2.5462]
[1718375742019,100.0,145.39,145.32,5.0921]
[1718375742327,2.5447,145.41,145.33,5.0918]
[1718375742508,100.0,145.43,145.35,15.3083]
[1718375742913,22.0166,145.48,145.35,15.3083]
[1718375742914,107.6344,145.4,145.35,15.3083]
[1718375743118,100.0,145.42,145.35,15.3083]
[1718375743327,100.0,145.44,145.35,15.3083]
[1718375743328,2.5443,145.43,145.35,15.3083]
[1718375743531,2.5442,145.43,145.36,2.5453]
[1718375743827,2.5443,145.42,145.35,17.8537]
[1718375744037,100.0,145.4,145.35,15.3083]
[1718375744202,22.9058,145.38,145.3,19.3421]
[1718375744405,2.5451,145.38,145.31,2.5462]
[1718375744605,2.5447,145.4,145.32,12.9003]
[1718375744934,5.0909,145.36,145.3,16.6258]
[1718375745096,102.5456,145.35,145.3,16.6258]
[1718375745303,102.5456,145.35,145.28,8.7983]
[1718375745304,100.0,145.32,145.28,6.2516]
[1718375745705,125.4616,145.32,145.26,16.4795496]
[1718375745927,117.8231,145.32,145.26,16.4795496]
[1718375746227,105.0916,145.34,145.26,19.0265496]
[1718375746409,102.5458,145.34,145.26,41.9507496]
[1718375746618,107.6373,145.34,145.27,2.5469]
[1718375746803,107.6373,145.34,145.26,41.9507496]
[1718375747009,112.7287,145.34,145.26,24.1207496]
[1718375747316,100.0,145.37,145.28,5.0934]
[1718375747503,120.3625,145.37,145.29,5.0932]
[1718375747702,2.5457,145.34,145.27,2.7169]
[1718375747901,2.5457,145.34,145.26,39.4026496]
[1718375748102,100.0,145.35,145.29,2.5466]
[1718375748332,100.0,145.37,145.3,15.2785]
[1718375748623,7.6351,145.38,145.3,25.4639]
[1718375748835,2.545,145.38,145.3,15.2781]
[1718375749043,5.0909,145.36,145.29,0.51]
[1718375749204,115.2715,145.37,145.29,8.1497]
[1718375749632,122.9072,145.37,145.29,8.1497]
[1718375749803,125.4525,145.37,145.29,15.7895]
[1718375750005,105.0905,145.37,145.29,0.51]
[1718375750220,7.6363,145.36,145.29,3.0565]
[1718375750427,2.5449,145.39,145.31,22.9159]
[1718375750642,12.839172,145.43,145.35,5.091]
[1718375750643,105.0884,145.43,145.35,5.091]
[1718375750814,7.6348,145.39,145.34,15.4021]
[1718375751011,5.0899,145.39,145.34,15.4021]
[1718375751214,2.5449,145.39,145.34,15.4021]
[1718375751424,122.9014,145.41,145.34,15.4021]
[1718375751738,102.5446,145.41,145.34,17.9478]
[1718375751908,6.88869286,145.47,145.34,17.9478]
[1718375751909,107.6325,145.43,145.35,22.9096]
[1718375752110,107.6325,145.43,145.37,7.6355]
[1718375752111,100.0,145.43,145.37,7.6355]
[1718375752309,100.0,145.43,145.34,15.7421]
[1718375752310,102.5442,145.43,145.35,17.8186]
[1718375752555,102.5442,145.43,145.34,15.7421]
[1718375752556,100.0,145.46,145.37,0.17]
[1718375752767,100.0,145.46,145.39,22.903]
[1718375753041,102.5437,145.46,145.39,2.5448]
[1718375753256,122.8902,145.48,145.4,2.5446]
[1718375753407,7.631,145.46,145.38,17.8148]
[1718375753606,7.6314,145.45,145.39,0.34]
[1718375753807,125.4372,145.46,145.38,7.635]
[1718375754155,122.8932,145.46,145.38,7.6349]
[1718375754324,107.6312,145.46,145.39,0.34]
[1718375754521,2.5438,145.45,145.39,0.34]
[1718375754715,7.6315,145.45,145.38,2.545]